[Event "*** MasterClass Titled Tuesday Blitz"]
[Site "Chess.com"]
[Date "2017.09.05"]
[Round "9"]
[White "novocane"]
[Black "dolynachess"]
[Result "1-0"]
[WhiteElo "2187"]
[BlackElo "2385"]
[TimeControl "180+2"]
[EndTime "15:13:27 PDT"]
[Termination "novocane won by resignation"]

1. d4 {[%clk 0:03:01.9]} 1... Nf6 {[%clk 0:03:00.6]} 2. c4 {[%clk 0:03:00.6]}
2... c5 {[%clk 0:03:02.1]} 3. d5 {[%clk 0:03:01.1]} 3... b5 {[%clk 0:03:03]} 4.
cxb5 {[%clk 0:03:03]} 4... a6 {[%clk 0:03:04.6]} 5. f3 {[%clk 0:03:04.3]} 5...
d6 {[%clk 0:03:00.5]} 6. e4 {[%clk 0:03:03.2]} 6... g6 {[%clk 0:03:01.8]} 7. Na3
{[%clk 0:03:03.6]} 7... Bg7 {[%clk 0:03:02.7]} 8. Ne2 {[%clk 0:03:04.6]} 8...
O-O {[%clk 0:03:03.4]} 9. Nc3 {[%clk 0:03:05.1]} 9... e6 {[%clk 0:02:59.1]} 10.
Be2 {[%clk 0:03:02.6]} 10... Bb7 {[%clk 0:02:50.2]} 11. dxe6 {[%clk 0:02:50.7]}
11... fxe6 {[%clk 0:02:52.3]} 12. O-O {[%clk 0:02:47.6]} 12... d5 {[%clk
0:02:49.2]} 13. e5 {[%clk 0:02:44]} 13... Nfd7 {[%clk 0:02:49]} 14. f4 {[%clk
0:02:44.6]} 14... Nb6 {[%clk 0:02:29.5]} 15. Bf3 {[%clk 0:02:38.2]} 15... N8d7
{[%clk 0:02:26.2]} 16. bxa6 {[%clk 0:02:03.9]} 16... Bxa6 {[%clk 0:02:25]} 17.
Nab5 {[%clk 0:02:01.9]} 17... d4 {[%clk 0:02:14.1]} 18. Bxa8 {[%clk 0:01:54.7]}
18... dxc3 {[%clk 0:02:14.4]} 19. Bc6 {[%clk 0:01:40.4]} 19... Nb8 {[%clk
0:01:46.3]} 20. Qxd8 {[%clk 0:01:32.9]} 20... Rxd8 {[%clk 0:01:46.5]} 21. Na7
{[%clk 0:01:08.2]} 21... Bxf1 {[%clk 0:01:39.8]} 22. Kxf1 {[%clk 0:01:09.1]}
22... Rd1+ {[%clk 0:01:27.9]} 23. Ke2 {[%clk 0:01:09.1]} 23... c2 {[%clk
0:01:20.8]} 24. Be4 {[%clk 0:01:06.5]} 24... Rh1 {[%clk 0:00:44.3]} 25. Bxc2
{[%clk 0:00:52.5]} 25... Rxh2 {[%clk 0:00:45]} 26. Kf3 {[%clk 0:00:49.4]} 26...
Rh1 {[%clk 0:00:42.7]} 27. b3 {[%clk 0:00:50.1]} 27... Rf1+ {[%clk 0:00:33.5]}
28. Ke2 {[%clk 0:00:49.7]} 28... Rg1 {[%clk 0:00:26.1]} 29. Kf2 {[%clk
0:00:50.6]} 29... Rh1 {[%clk 0:00:26.6]} 30. Bb2 {[%clk 0:00:51.5]} 30... Rxa1
{[%clk 0:00:23]} 31. Bxa1 {[%clk 0:00:53.4]} 31... Nd5 {[%clk 0:00:24]} 32. g3
{[%clk 0:00:50.1]} 32... h5 {[%clk 0:00:23.9]} 33. Bxg6 {[%clk 0:00:46.2]} 33...
h4 {[%clk 0:00:24.1]} 34. Nb5 {[%clk 0:00:46.4]} 34... Bh6 {[%clk 0:00:19.7]}
35. Nd6 {[%clk 0:00:43.9]} 35... hxg3+ {[%clk 0:00:20.5]} 36. Kxg3 {[%clk
0:00:45]} 36... Bxf4+ {[%clk 0:00:21.7]} 37. Kf3 {[%clk 0:00:41.1]} 37... Kf8
{[%clk 0:00:19.3]} 38. Bf7 {[%clk 0:00:41]} 38... Bh6 {[%clk 0:00:16]} 39. Bxe6
{[%clk 0:00:41.8]} 39... Nb4 {[%clk 0:00:16.6]} 40. a3 {[%clk 0:00:41.6]} 40...
Nd3 {[%clk 0:00:17.6]} 41. Bc3 {[%clk 0:00:42.3]} 41... Nc6 {[%clk 0:00:17.9]}
42. Nc4 {[%clk 0:00:42.8]} 42... Bg7 {[%clk 0:00:17.5]} 43. Ke4 {[%clk 0:00:41]}
43... Nc1 {[%clk 0:00:14.5]} 44. Nd6 {[%clk 0:00:39.7]} 44... Ke7 {[%clk
0:00:14]} 45. Nf5+ {[%clk 0:00:39.4]} 45... Kxe6 {[%clk 0:00:14.3]} 46. Nxg7+
{[%clk 0:00:40.6]} 46... Kf7 {[%clk 0:00:15.9]} 47. Nf5 {[%clk 0:00:41.7]} 47...
Nxb3 {[%clk 0:00:16.9]} 48. Kd5 {[%clk 0:00:41.3]} 48... Nd8 {[%clk 0:00:11.4]}
49. Nd6+ {[%clk 0:00:41.1]} 49... Ke7 {[%clk 0:00:11.5]} 50. Ne4 {[%clk
0:00:41.3]} 50... Ne6 {[%clk 0:00:11.4]} 51. a4 {[%clk 0:00:41.3]} 51... Kd7
{[%clk 0:00:12.5]} 52. Kc4 {[%clk 0:00:42.1]} 52... Nc1 {[%clk 0:00:12.4]} 53.
Nxc5+ {[%clk 0:00:43]} 53... Nxc5 {[%clk 0:00:13.6]} 54. Kxc5 {[%clk 0:00:44.9]}
54... Ne2 {[%clk 0:00:14.1]} 55. Kc4 {[%clk 0:00:45.5]} 55... Nf4 {[%clk
0:00:14.5]} 56. a5 {[%clk 0:00:45.7]} 56... Ng6 {[%clk 0:00:15.1]} 57. a6 {[%clk
0:00:46.2]} 57... Nxe5+ {[%clk 0:00:14.2]} 58. Bxe5 {[%clk 0:00:42.5]} 58... Kc6
{[%clk 0:00:15.5]} 59. Bd4 {[%clk 0:00:33]} 59... Kc7 {[%clk 0:00:16.5]} 60. Ba7
{[%clk 0:00:32.6]} 60... Kc6 {[%clk 0:00:16.7]} 61. Kb4 {[%clk 0:00:32.8]} 61...
Kc7 {[%clk 0:00:17.7]} 62. Kb5 {[%clk 0:00:34.2]} 62... Kc8 {[%clk 0:00:18.5]}
63. Kb6 {[%clk 0:00:35.5]} 63... Kd8 {[%clk 0:00:18.8]} 64. Kb7 {[%clk
0:00:36.5]} 64... Kd7 {[%clk 0:00:20.7]} 65. Bb8 {[%clk 0:00:37.6]} 65... Kd8
{[%clk 0:00:21.6]} 66. a7 {[%clk 0:00:38.1]} 1-0

[Event "*** MasterClass Titled Tuesday Blitz"]
[Site "Chess.com"]
[Date "2017.09.05"]
[Round "9"]
[White "Aariow"]
[Black "Tarlev_Konstantin"]
[Result "0-1"]
[WhiteElo "2367"]
[BlackElo "2606"]
[TimeControl "180+2"]
[EndTime "15:13:41 PDT"]
[Termination "Tarlev_Konstantin won by resignation"]

1. Nf3 {[%clk 0:03:01.9]} 1... Nf6 {[%clk 0:02:57.9]} 2. g3 {[%clk 0:03:02.8]}
2... e6 {[%clk 0:02:56.4]} 3. Bg2 {[%clk 0:03:03.8]} 3... d5 {[%clk 0:02:58.1]}
4. O-O {[%clk 0:03:04.6]} 4... c5 {[%clk 0:02:59.3]} 5. d4 {[%clk 0:03:03.8]}
5... Nc6 {[%clk 0:02:57.9]} 6. c4 {[%clk 0:03:04.8]} 6... dxc4 {[%clk
0:02:54.8]} 7. dxc5 {[%clk 0:03:05.8]} 7... Qxd1 {[%clk 0:02:50.6]} 8. Rxd1
{[%clk 0:03:07.7]} 8... Bxc5 {[%clk 0:02:52]} 9. Nbd2 {[%clk 0:03:09.3]} 9... c3
{[%clk 0:02:44.9]} 10. bxc3 {[%clk 0:03:11.2]} 10... Bd7 {[%clk 0:02:46.3]} 11.
Nb3 {[%clk 0:03:12.4]} 11... Be7 {[%clk 0:02:43.1]} 12. Nfd4 {[%clk 0:03:10]}
12... Nd5 {[%clk 0:02:40.8]} 13. Bxd5 {[%clk 0:02:58.7]} 13... exd5 {[%clk
0:02:41.3]} 14. Nb5 {[%clk 0:02:56.7]} 14... O-O-O {[%clk 0:02:40.2]} 15. Rxd5
{[%clk 0:02:44.2]} 15... Bg4 {[%clk 0:02:37.8]} 16. Rxd8+ {[%clk 0:02:31]} 16...
Rxd8 {[%clk 0:02:38]} 17. N5d4 {[%clk 0:02:19.9]} 17... Ne5 {[%clk 0:02:25.9]}
18. f3 {[%clk 0:02:12.9]} 18... Bd7 {[%clk 0:02:26.3]} 19. Bf4 {[%clk
0:02:03.4]} 19... Nc4 {[%clk 0:02:22.3]} 20. Nd2 {[%clk 0:02:04.8]} 20... Na3
{[%clk 0:02:23.2]} 21. Nb1 {[%clk 0:01:47.5]} 21... Nb5 {[%clk 0:02:08.3]} 22.
a4 {[%clk 0:01:45.3]} 22... Nc7 {[%clk 0:02:02.9]} 23. e4 {[%clk 0:01:30.6]}
23... Ne6 {[%clk 0:01:50]} 24. Be3 {[%clk 0:01:29.3]} 24... Nc5 {[%clk
0:01:51.5]} 25. a5 {[%clk 0:01:16.3]} 25... g6 {[%clk 0:01:44.7]} 26. Nd2 {[%clk
0:01:17]} 26... f5 {[%clk 0:01:41.6]} 27. e5 {[%clk 0:01:13.8]} 27... Be8 {[%clk
0:01:32.1]} 28. Kf1 {[%clk 0:00:57.1]} 28... Bf7 {[%clk 0:01:31.4]} 29. Ke2
{[%clk 0:00:57]} 29... a6 {[%clk 0:01:28.3]} 30. Rb1 {[%clk 0:00:54.5]} 30...
Na4 {[%clk 0:01:23.1]} 31. Kd3 {[%clk 0:00:49.9]} 31... Rd5 {[%clk 0:01:18.3]}
32. f4 {[%clk 0:00:46.2]} 32... Rxa5 {[%clk 0:01:17.1]} 33. e6 {[%clk
0:00:43.1]} 33... Nc5+ {[%clk 0:01:10.5]} 34. Ke2 {[%clk 0:00:40.6]} 34... Nxe6
{[%clk 0:01:10.6]} 35. N4b3 {[%clk 0:00:35.2]} 35... Ra2 {[%clk 0:01:07.8]} 36.
Kd3 {[%clk 0:00:30.6]} 36... Be8 {[%clk 0:01:02.9]} 37. Bb6 {[%clk 0:00:27.8]}
37... Bc6 {[%clk 0:00:54.4]} 38. Re1 {[%clk 0:00:25.2]} 38... Kd7 {[%clk
0:00:50.8]} 39. c4 {[%clk 0:00:18.7]} 39... Bb4 {[%clk 0:00:47.1]} 40. Re2
{[%clk 0:00:16.7]} 40... a5 {[%clk 0:00:41.5]} 41. Nc1 {[%clk 0:00:11.6]} 41...
Ra3+ {[%clk 0:00:37]} 42. Kc2 {[%clk 0:00:08.5]} 42... Nc5 {[%clk 0:00:22.2]}
43. Bxc5 {[%clk 0:00:07.9]} 43... Bxc5 {[%clk 0:00:23.1]} 44. Ndb3 {[%clk
0:00:08.6]} 44... Be7 {[%clk 0:00:19.4]} 45. Kb2 {[%clk 0:00:07.9]} 45... Ra4
{[%clk 0:00:19.5]} 46. Nd3 {[%clk 0:00:07.1]} 46... Bf6+ {[%clk 0:00:17.6]} 47.
Kb1 {[%clk 0:00:07.2]} 47... Rxc4 {[%clk 0:00:17]} 48. Nxa5 {[%clk 0:00:07.5]}
48... Rd4 {[%clk 0:00:17.3]} 49. Nc5+ {[%clk 0:00:07.9]} 49... Kd6 {[%clk
0:00:15.4]} 50. Ncxb7+ {[%clk 0:00:08.1]} 50... Bxb7 {[%clk 0:00:16.4]} 51.
Nxb7+ {[%clk 0:00:09.8]} 51... Kd5 {[%clk 0:00:18]} 52. Na5 {[%clk 0:00:09.8]}
52... Rb4+ {[%clk 0:00:18]} 53. Kc1 {[%clk 0:00:09.9]} 53... Bd4 {[%clk
0:00:18.2]} 54. Re7 {[%clk 0:00:09.4]} 54... Bb6 {[%clk 0:00:17.3]} 55. Nb7
{[%clk 0:00:10]} 55... h5 {[%clk 0:00:13.7]} 56. Re5+ {[%clk 0:00:08.1]} 56...
Kc6 {[%clk 0:00:13.6]} 57. Na5+ {[%clk 0:00:09.6]} 57... Kd6 {[%clk 0:00:12.8]}
58. Nb7+ {[%clk 0:00:10.6]} 58... Kc7 {[%clk 0:00:09.2]} 59. Nc5 {[%clk
0:00:10.5]} 59... Rc4+ {[%clk 0:00:09.8]} 60. Kd2 {[%clk 0:00:10.3]} 60... Rxc5
{[%clk 0:00:11.2]} 61. Re6 {[%clk 0:00:11.7]} 61... Rc6 {[%clk 0:00:12.2]} 62.
Re7+ {[%clk 0:00:13.2]} 62... Kd6 {[%clk 0:00:13.6]} 63. Rg7 {[%clk 0:00:14.3]}
63... Kd5 {[%clk 0:00:14.9]} 64. Ke2 {[%clk 0:00:15.3]} 64... Bd4 {[%clk
0:00:14.6]} 65. Kf3 {[%clk 0:00:15.8]} 65... Bxg7 {[%clk 0:00:14.9]} 0-1

[Event "*** MasterClass Titled Tuesday Blitz"]
[Site "Chess.com"]
[Date "2017.09.05"]
[Round "9"]
[White "sergiochess83"]
[Black "OparinGrigoriy"]
[Result "0-1"]
[WhiteElo "2753"]
[BlackElo "2653"]
[TimeControl "180+2"]
[EndTime "15:14:06 PDT"]
[Termination "OparinGrigoriy won by resignation"]

1. Nf3 {[%clk 0:03:01.4]} 1... Nf6 {[%clk 0:03:00.8]} 2. c4 {[%clk 0:03:02.2]}
2... e6 {[%clk 0:03:01.8]} 3. g3 {[%clk 0:03:01.3]} 3... b6 {[%clk 0:03:01.9]}
4. Bg2 {[%clk 0:03:01.9]} 4... Bb7 {[%clk 0:03:03.5]} 5. O-O {[%clk 0:03:02.5]}
5... Be7 {[%clk 0:03:04.5]} 6. Nc3 {[%clk 0:02:58.5]} 6... c5 {[%clk 0:03:05.2]}
7. d4 {[%clk 0:02:54.8]} 7... cxd4 {[%clk 0:03:05.5]} 8. Qxd4 {[%clk 0:02:55.7]}
8... O-O {[%clk 0:03:06.7]} 9. Rd1 {[%clk 0:02:50.8]} 9... d6 {[%clk 0:02:54.3]}
10. b3 {[%clk 0:02:44.1]} 10... Nbd7 {[%clk 0:02:42.3]} 11. Bb2 {[%clk
0:02:38.4]} 11... a6 {[%clk 0:02:42.2]} 12. e4 {[%clk 0:02:30.1]} 12... Qb8
{[%clk 0:02:42.4]} 13. Qe3 {[%clk 0:02:26]} 13... Rd8 {[%clk 0:02:38.8]} 14. Nd4
{[%clk 0:02:24.5]} 14... Qa7 {[%clk 0:02:34.5]} 15. h3 {[%clk 0:02:20]} 15...
Rac8 {[%clk 0:02:35.7]} 16. Rd2 {[%clk 0:02:17]} 16... Qa8 {[%clk 0:02:35.1]}
17. Re1 {[%clk 0:02:13.3]} 17... Nc5 {[%clk 0:02:34.9]} 18. f4 {[%clk 0:02:03]}
18... Bf8 {[%clk 0:02:32.8]} 19. g4 {[%clk 0:01:48.2]} 19... e5 {[%clk
0:01:31.9]} 20. Nf5 {[%clk 0:01:45.8]} 20... Re8 {[%clk 0:01:33.1]} 21. fxe5
{[%clk 0:01:43]} 21... dxe5 {[%clk 0:01:21.5]} 22. Nd5 {[%clk 0:01:41]} 22...
Ncxe4 {[%clk 0:00:47.9]} 23. Bxe4 {[%clk 0:00:58.5]} 23... Nxd5 {[%clk
0:00:30.5]} 24. Rxd5 {[%clk 0:00:46.5]} 24... Bxd5 {[%clk 0:00:26.9]} 25. Bxd5
{[%clk 0:00:47.5]} 25... Bc5 {[%clk 0:00:28.5]} 26. Qxc5 {[%clk 0:00:46.5]}
26... Rxc5 {[%clk 0:00:27.6]} 27. Bxa8 {[%clk 0:00:47.5]} 27... Rxa8 {[%clk
0:00:29.5]} 28. Rxe5 {[%clk 0:00:42.5]} 28... Rxe5 {[%clk 0:00:30]} 29. Bxe5
{[%clk 0:00:43.4]} 29... Re8 {[%clk 0:00:30.5]} 30. Bxg7 {[%clk 0:00:41.9]}
30... Re2 {[%clk 0:00:30.5]} 31. a4 {[%clk 0:00:39]} 31... Re1+ {[%clk
0:00:31.3]} 32. Kf2 {[%clk 0:00:36.8]} 32... Rb1 {[%clk 0:00:33.2]} 33. h4
{[%clk 0:00:25.9]} 33... Rxb3 {[%clk 0:00:32.8]} 34. h5 {[%clk 0:00:26.9]} 34...
h6 {[%clk 0:00:26.8]} 35. Bxh6 {[%clk 0:00:24.6]} 35... Rb4 {[%clk 0:00:28.3]}
36. Nd6 {[%clk 0:00:23.8]} 36... Rxa4 {[%clk 0:00:27.1]} 37. Be3 {[%clk
0:00:24.8]} 37... Rb4 {[%clk 0:00:26.4]} 38. Kf3 {[%clk 0:00:07.4]} 38... a5
{[%clk 0:00:27]} 39. Bd2 {[%clk 0:00:06.5]} 39... Rb3+ {[%clk 0:00:25.1]} 40.
Ke4 {[%clk 0:00:07.5]} 40... a4 {[%clk 0:00:26.6]} 41. Be3 {[%clk 0:00:06.3]}
41... a3 {[%clk 0:00:26.1]} 42. Bd4 {[%clk 0:00:07.3]} 42... a2 {[%clk
0:00:27.5]} 43. h6 {[%clk 0:00:07]} 43... Rb1 {[%clk 0:00:18.7]} 44. h7+ {[%clk
0:00:08.1]} 44... Kxh7 {[%clk 0:00:19.5]} 45. Nxf7 {[%clk 0:00:10]} 45... Re1+
{[%clk 0:00:18.3]} 46. Kf5 {[%clk 0:00:08.7]} 46... Rf1+ {[%clk 0:00:19.1]} 47.
Ke6 {[%clk 0:00:09.5]} 47... Kg6 {[%clk 0:00:19.6]} 48. Ne5+ {[%clk 0:00:10]}
48... Kg5 {[%clk 0:00:19.8]} 49. Nc6 {[%clk 0:00:10.5]} 49... Rb1 {[%clk
0:00:13]} 50. Ne5 {[%clk 0:00:08.6]} 50... Rd1 {[%clk 0:00:12]} 51. Bc3 {[%clk
0:00:06.7]} 51... Rc1 {[%clk 0:00:12.5]} 52. Bd4 {[%clk 0:00:06.9]} 52... Rb1
{[%clk 0:00:13.1]} 53. Be3+ {[%clk 0:00:05.2]} 53... Kh4 {[%clk 0:00:13.1]} 54.
Bd4 {[%clk 0:00:06.8]} 54... Kg5 {[%clk 0:00:11.3]} 55. Be3+ {[%clk 0:00:07.9]}
55... Kh4 {[%clk 0:00:12.1]} 56. Bd4 {[%clk 0:00:09.8]} 56... Rd1 {[%clk
0:00:12]} 57. Bc3 {[%clk 0:00:10.7]} 57... Kg5 {[%clk 0:00:12.4]} 58. Nd7 {[%clk
0:00:08.3]} 58... Rb1 {[%clk 0:00:09.9]} 59. Kd6 {[%clk 0:00:08.2]} 59... Kxg4
{[%clk 0:00:09.9]} 60. Kc6 {[%clk 0:00:09]} 60... Rc1 {[%clk 0:00:09.6]} 61. Bf6
{[%clk 0:00:08.2]} 61... Kf5 {[%clk 0:00:10]} 62. Kxb6 {[%clk 0:00:07.9]} 62...
Rd1 {[%clk 0:00:11.1]} 63. Bb2 {[%clk 0:00:03.6]} 63... Rxd7 {[%clk 0:00:11.9]}
64. c5 {[%clk 0:00:04]} 64... Rd2 {[%clk 0:00:12.7]} 65. Ba1 {[%clk 0:00:05.3]}
65... Ke6 {[%clk 0:00:13.2]} 66. c6 {[%clk 0:00:05.9]} 66... Rc2 {[%clk
0:00:14.8]} 67. Kb7 {[%clk 0:00:05.9]} 67... Kd6 {[%clk 0:00:16]} 0-1

[Event "*** MasterClass Titled Tuesday Blitz"]
[Site "Chess.com"]
[Date "2017.09.05"]
[Round "9"]
[White "Sebastian"]
[Black "Witik"]
[Result "1/2-1/2"]
[WhiteElo "2809"]
[BlackElo "2567"]
[TimeControl "180+2"]
[EndTime "15:15:35 PDT"]
[Termination "Game drawn by agreement"]

1. e4 {[%clk 0:03:01.9]} 1... c6 {[%clk 0:03:00.8]} 2. d4 {[%clk 0:03:02.3]}
2... d5 {[%clk 0:03:02.4]} 3. e5 {[%clk 0:03:03.9]} 3... Bf5 {[%clk 0:03:03]} 4.
Nf3 {[%clk 0:03:05.3]} 4... e6 {[%clk 0:03:03.8]} 5. Be2 {[%clk 0:03:07]} 5...
Nd7 {[%clk 0:03:03.3]} 6. O-O {[%clk 0:03:08.1]} 6... Bg6 {[%clk 0:03:03.9]} 7.
Nbd2 {[%clk 0:03:08.9]} 7... Nh6 {[%clk 0:03:04.2]} 8. Nb3 {[%clk 0:03:08.9]}
8... Nf5 {[%clk 0:03:04.9]} 9. c3 {[%clk 0:03:10.2]} 9... Be7 {[%clk 0:02:58.3]}
10. Bf4 {[%clk 0:03:10.8]} 10... O-O {[%clk 0:02:51.3]} 11. g4 {[%clk
0:03:05.5]} 11... Nh6 {[%clk 0:02:47.3]} 12. h3 {[%clk 0:02:55.1]} 12... f6
{[%clk 0:02:46.3]} 13. exf6 {[%clk 0:02:52.7]} 13... Rxf6 {[%clk 0:02:36.6]} 14.
Bg3 {[%clk 0:02:50.1]} 14... Nf7 {[%clk 0:02:34.6]} 15. Nc1 {[%clk 0:02:44.8]}
15... e5 {[%clk 0:02:25.7]} 16. Nxe5 {[%clk 0:02:43]} 16... Nfxe5 {[%clk
0:02:16.5]} 17. dxe5 {[%clk 0:02:43.7]} 17... Rf8 {[%clk 0:02:03.9]} 18. Bd3
{[%clk 0:02:41.4]} 18... Nc5 {[%clk 0:02:00.8]} 19. Bxg6 {[%clk 0:02:27.1]}
19... hxg6 {[%clk 0:02:01.8]} 20. Nd3 {[%clk 0:02:18.9]} 20... Ne4 {[%clk
0:02:00]} 21. Kg2 {[%clk 0:02:09.2]} 21... Bh4 {[%clk 0:01:51.1]} 22. Bh2 {[%clk
0:02:02.6]} 22... Qb6 {[%clk 0:01:43.8]} 23. Qe2 {[%clk 0:02:01.4]} 23... Rae8
{[%clk 0:01:37.8]} 24. f3 {[%clk 0:02:00.9]} 24... Ng5 {[%clk 0:01:33.7]} 25.
Nf4 {[%clk 0:01:51.3]} 25... Kh7 {[%clk 0:01:29.6]} 26. Qc2 {[%clk 0:01:51.1]}
26... c5 {[%clk 0:01:30.5]} 27. Nxd5 {[%clk 0:01:50.3]} 27... Qc6 {[%clk
0:01:31.7]} 28. c4 {[%clk 0:01:51.1]} 28... Ne6 {[%clk 0:01:32.4]} 29. Rad1
{[%clk 0:01:25.3]} 29... Nd4 {[%clk 0:01:30.9]} 30. Qe4 {[%clk 0:01:20.5]} 30...
Qa4 {[%clk 0:01:25.5]} 31. f4 {[%clk 0:01:03]} 31... b5 {[%clk 0:01:20.5]} 32.
f5 {[%clk 0:01:01.1]} 32... Qxa2 {[%clk 0:01:07.6]} 33. fxg6+ {[%clk 0:00:59]}
33... Kg8 {[%clk 0:01:06.5]} 34. Rf7 {[%clk 0:00:41.4]} 34... Qxb2+ {[%clk
0:00:57.5]} 35. Kh1 {[%clk 0:00:42.8]} 35... Rxf7 {[%clk 0:00:51.6]} 36. gxf7+
{[%clk 0:00:43.6]} 36... Kxf7 {[%clk 0:00:53]} 37. Rf1+ {[%clk 0:00:45.2]} 37...
Kg8 {[%clk 0:00:51.9]} 38. Qg6 {[%clk 0:00:41.9]} 38... Rf8 {[%clk 0:00:46.7]}
39. Nf6+ {[%clk 0:00:33.8]} 39... Bxf6 {[%clk 0:00:45.5]} 40. exf6 {[%clk
0:00:35.4]} 40... Rf7 {[%clk 0:00:44.3]} 41. Qe4 {[%clk 0:00:10.3]} 41... Qe2
{[%clk 0:00:37.4]} 42. Qxe2 {[%clk 0:00:08.7]} 42... Nxe2 {[%clk 0:00:38.6]} 43.
cxb5 {[%clk 0:00:09.7]} 43... c4 {[%clk 0:00:35.6]} 44. Re1 {[%clk 0:00:07.4]}
44... Nc3 {[%clk 0:00:30.7]} 45. Rc1 {[%clk 0:00:08.2]} 45... Nxb5 {[%clk
0:00:29.2]} 46. fxg7 {[%clk 0:00:09.6]} 46... c3 {[%clk 0:00:20.7]} 47. Be5
{[%clk 0:00:11]} 47... Kh7 {[%clk 0:00:17.7]} 48. g5 {[%clk 0:00:11.2]} 48...
Re7 {[%clk 0:00:15.6]} 49. Bf6 {[%clk 0:00:11.9]} 49... Re2 {[%clk 0:00:16.4]}
50. Kg1 {[%clk 0:00:10.2]} 50... c2 {[%clk 0:00:15.3]} 51. Kf1 {[%clk 0:00:11]}
51... Rh2 {[%clk 0:00:14.1]} 52. Ke1 {[%clk 0:00:12.3]} 52... Na3 {[%clk
0:00:12.6]} 53. g6+ {[%clk 0:00:12.6]} 53... Kg8 {[%clk 0:00:11.8]} 54. Be5
{[%clk 0:00:14]} 54... Rg2 {[%clk 0:00:10.7]} 55. Kf1 {[%clk 0:00:13.6]} 55...
Rxg6 {[%clk 0:00:08.4]} 56. Bb2 {[%clk 0:00:11.5]} 56... Nc4 {[%clk 0:00:07.3]}
57. Bd4 {[%clk 0:00:12.8]} 57... Rd6 {[%clk 0:00:05.6]} 58. Rxc2 {[%clk
0:00:10.9]} 58... Rxd4 {[%clk 0:00:06.9]} 59. Ke2 {[%clk 0:00:09.6]} 59... a5
{[%clk 0:00:08.4]} 60. Rc3 {[%clk 0:00:10.3]} 60... Kxg7 {[%clk 0:00:09.8]} 61.
Rg3+ {[%clk 0:00:09.4]} 61... Kf6 {[%clk 0:00:11.1]} 62. Rb3 {[%clk 0:00:10]}
62... a4 {[%clk 0:00:12.3]} 63. Rb4 {[%clk 0:00:08.6]} 63... Ke5 {[%clk
0:00:13.7]} 64. Rxa4 {[%clk 0:00:09.4]} 64... Kd5 {[%clk 0:00:12.7]} 65. Ra8
{[%clk 0:00:10]} 65... Rh4 {[%clk 0:00:13.3]} 66. Rd8+ {[%clk 0:00:09.1]} 66...
Kc5 {[%clk 0:00:14.6]} 67. Kf3 {[%clk 0:00:09.7]} 67... Rxh3+ {[%clk 0:00:15.5]}
68. Kg4 {[%clk 0:00:11.6]} 68... Rc3 {[%clk 0:00:17]} 69. Kf4 {[%clk 0:00:12]}
69... Rc1 {[%clk 0:00:17.7]} 70. Rc8+ {[%clk 0:00:12.8]} 70... Kd4 {[%clk
0:00:18.5]} 71. Rd8+ {[%clk 0:00:13.8]} 71... Kc3 {[%clk 0:00:20]} 72. Rc8
{[%clk 0:00:14.3]} 72... Rf1+ {[%clk 0:00:21.5]} 73. Kg3 {[%clk 0:00:15.3]}
73... Kd3 {[%clk 0:00:22.6]} 74. Kg4 {[%clk 0:00:14.5]} 74... Ne5+ {[%clk
0:00:22.8]} 75. Kg5 {[%clk 0:00:15.5]} 75... Ke4 {[%clk 0:00:24.4]} 76. Re8
{[%clk 0:00:15.1]} 76... Rf5+ {[%clk 0:00:25.3]} 77. Kh6 {[%clk 0:00:15.6]}
77... Kf4 {[%clk 0:00:26]} 78. Ra8 {[%clk 0:00:15.4]} 78... Ng4+ {[%clk
0:00:26.3]} 79. Kg6 {[%clk 0:00:15.8]} 79... Ne5+ {[%clk 0:00:27]} 80. Kh6
{[%clk 0:00:16.6]} 80... Rf6+ {[%clk 0:00:28.2]} 81. Kg7 {[%clk 0:00:17.4]}
81... Kg5 {[%clk 0:00:26.3]} 82. Ra5 {[%clk 0:00:17.2]} 82... Kf5 {[%clk
0:00:26.2]} 83. Rb5 {[%clk 0:00:16.8]} 83... Rg6+ {[%clk 0:00:27.2]} 84. Kf8
{[%clk 0:00:17.5]} 84... Ra6 {[%clk 0:00:27.8]} 85. Ke7 {[%clk 0:00:17.9]} 85...
Ra7+ {[%clk 0:00:27.5]} 86. Kd6 {[%clk 0:00:18.8]} 86... Ra6+ {[%clk 0:00:25.2]}
87. Kc7 {[%clk 0:00:19.6]} 87... Ke4 {[%clk 0:00:24]} 88. Rb6 {[%clk 0:00:19.8]}
88... Ra4 {[%clk 0:00:23.7]} 89. Rb1 {[%clk 0:00:18.9]} 89... Kd5 {[%clk
0:00:23.4]} 90. Rd1+ {[%clk 0:00:19.2]} 90... Kc5 {[%clk 0:00:24.3]} 91. Rc1+
{[%clk 0:00:20.8]} 91... Nc4 {[%clk 0:00:25.8]} 92. Kd7 {[%clk 0:00:22.4]} 92...
Ra6 {[%clk 0:00:26.4]} 93. Ke7 {[%clk 0:00:23.2]} 93... Kd5 {[%clk 0:00:26.8]}
94. Rd1+ {[%clk 0:00:23.7]} 94... Ke5 {[%clk 0:00:26.2]} 95. Re1+ {[%clk
0:00:24.6]} 1/2-1/2